[Event "85th ARM-ch HL 2025"]
[Site "Yerevan"]
[Date "2025.01.17"]
[Round "4.3"]
[White "Grigoryan, Karen H."]
[Black "Andriasian, Zaven"]
[Result "1/2-1/2"]
[Annotator "TA"]
[ECO "B87"]
[WhiteElo "2572"]
[BlackElo "2554"]
[PlyCount "135"]
[EventDate "2025.01.13"]
[EventType "tourn"]
[EventCountry "ARM"]
[SourceTitle "playchess.com"]
[Source "ChessBase"]
[SourceQuality "1"]
[TimeControl "40/5400+30:1800+30"]

{[%evp 40,135,28,39,36,44,65,65,66,135,98,2,48,25,16,17,19,5,73,76,76,71,78,68,83,87,89,67,87,23,22,20,23,21,30,37,31,24,24,24,18,11,10,8,10,8,16,0,0,0,0,0,0,0,0,0,0,0,16,16,16,16,16,16,70,70,70,70,70,70,70,55,70,70,158,70,70,70,70,70,70,70,70,70,70,70,70,70,70,70,70,70,70,70,70,0,70,70]} 1. e4 {[%emt 0:00:18]} c5 {[%emt 0:00:10]} 2. Nf3 {[%emt 0:00:08]} d6 {[%emt 0:00:10]} 3. d4 {[%emt 0:00:05]} cxd4 {[%emt 0:00:10]} 4. Nxd4 {[%emt 0:00:06]} Nf6 {[%emt 0:00:13]} 5. Nc3 {[%emt 0:00:07]} a6 {[%emt 0:00:10]} 6. Bc4 {[%emt 0:00:05]} e6 {[%emt 0:01:20]} 7. Bb3 {[%emt 0:00:06]} b5 {[%emt 0:02:11]} 8. Be3 {[%emt 0:00:07]} Bb7 {[%emt 0:02:34]} 9. f3 {[%emt 0:00:11]} Nbd7 {[%emt 0:10:45]} 10. a3 {[%emt 0:00:50]} Rc8 {[%emt 0:01:40]} 11. Qd2 {[%emt 0:01:49]} Ne5 {[%emt 0:04:06]} 12. O-O {[%emt 0:01:22]} Nc4 {[%emt 0:04:39]} 13. Bxc4 {[%emt 0:00:09]} Rxc4 {[%emt 0:00:08]} 14. a4 {[%emt 0:20:16]} b4 {[%emt 0:14:25]} 15. Nce2 {[%emt 0:01:46]} e5 {[%emt 0:01:31]} 16. Nf5 {[%emt 0:00:16]} d5 {[%emt 0:04:33]} 17. Rfd1 {[%emt 0:02:53]} g6 {[%emt 0:03:29]} 18. Nh6 {[%emt 0:02:55]} Be7 {[%emt 0:00:54]} 19. Rac1 {[%emt 0:07:23]} Rc8 {[%emt 0:05:07]} 20. Ng3 {[%emt 0:06:15]} Qc7 {[%emt 0:02:58]} (20... dxe4 $142 21. Qf2) 21. c3 $11 {[%emt 0:01:34]} b3 {[%emt 0:00:39]} 22. f4 {[%emt 0:02:46]} dxe4 {[%emt 0:05:12]} 23. fxe5 {[%emt 0:01:52]} Nd5 {[%emt 0:03:42]} 24. Nxe4 {[%emt 0:11:29]} Qxe5 {[%emt 0:03:24]} (24... Nxe3 $2 25. Nd6+ (25. Qxe3 Bxe4 26. Qxe4 Bg5 $17) 25... Kf8 (25... Bxd6 26. exd6 Qc5 27. d7+ Kd8 28. Nxf7+ Kc7 29. Qd4 $18) 26. Qxe3 $18) 25. Qd4 {[%emt 0:09:53]} (25. Bd4 $16 Qxe4 26. Re1) 25... f6 {[%emt 0:05:38]} (25... Qxd4 $11 {should be considered.} 26. Bxd4 f5 27. Bxh8 fxe4) 26. Ng4 {[%emt 0:08:50]} Qxd4 {[%emt 0:05:05]} 27. Bxd4 {[%emt 0:00:16]} O-O {[%emt 0:00:59]} 28. c4 {[%emt 0:01:54]} Ne3 {[%emt 0:06:07]} (28... Nf4 $1 $11 29. Re1 (29. Nexf6+ Rxf6 30. Nxf6+ Bxf6 $15) (29. Ngxf6+ Bxf6 30. Nxf6+ Rxf6 $11) (29. Bxf6 h5 $11) 29... Nh5) 29. Nexf6+ {[%emt 0:03:48]} (29. Nxe3 $6 Bxe4 30. Bb6 f5 $11) 29... Bxf6 {[%emt 0:00:20]} 30. Nxf6+ {[%emt 0:00:07]} (30. Nxe3 Bg5 $11) 30... Rxf6 {[%emt 0:00:08]} 31. Bxe3 {[%emt 0:00:07]} (31. Bxf6 Nxd1 32. Rxd1 Rxc4 $11) 31... Bc6 {[%emt 0:06:37]} 32. a5 {[%emt 0:02:33]} Re6 {[%emt 0:00:30]} 33. Rd3 {[%emt 0:02:22]} Rce8 {[%emt 0:00:14]} 34. Bf2 {[%emt 0:01:19]} (34. Rcc3 $16) 34... Re2 $1 $11 {[%emt 0:00:50]} 35. Rxb3 {[%emt 0:01:56]} Rf8 {[%emt 0:00:13]} 36. Rf1 {[%emt 0:00:07]} Rc2 {[%emt 0:01:13]} 37. h3 {[%emt 0:07:21]} Rxc4 {[%emt 0:02:49]} 38. Rc3 {[%emt 0:00:07]} Rxc3 {[%emt 0:00:07]} 39. bxc3 {[%emt 0:00:04]} Rf5 {[%emt 0:00:16]} 40. Ra1 {[%emt 0:00:00]} Rb5 {[%emt 0:00:00]} 41. c4 {[%emt 0:01:00]} Rb4 {[%emt 0:07:33]} 42. c5 {[%emt 0:01:01]} Ra4 {[%emt 0:00:19]} 43. Rd1 {[%emt 0:00:37]} Rxa5 {[%emt 0:01:42]} 44. Rd8+ {[%emt 0:00:06]} Kf7 {[%emt 0:00:28]} 45. Rc8 {[%emt 0:00:05]} Ra1+ {[%emt 0:03:47]} 46. Kh2 {[%emt 0:00:20]} Be4 {[%emt 0:01:27]} 47. c6 {[%emt 0:01:18]} Rc1 {[%emt 0:01:50]} 48. c7 {[%emt 0:01:14]} Bf5 {[%emt 0:00:47]} 49. Rh8 {[%emt 0:00:09]} h5 {[%emt 0:00:57]} 50. Bg3 {[%emt 0:00:36]} Rc2 {[%emt 0:01:06]} 51. h4 {[%emt 0:00:26]} Rc4 {[%emt 0:08:50]} (51... a5 $11) 52. Ra8 $14 {[%emt 0:00:24]} Rc6 {[%emt 0:00:13]} 53. Bf4 {[%emt 0:00:48]} Be6 {[%emt 0:00:43]} 54. Kg1 {[%emt 0:00:11]} Kf6 {[%emt 0:01:04]} 55. Kf2 {[%emt 0:00:17]} Kf5 {[%emt 0:01:40]} 56. Ke3 {[%emt 0:00:34]} Bd7 {[%emt 0:02:19]} ({Black should play} 56... Kf6 $1 $14) 57. g3 {[%emt 0:00:45]} (57. Rf8+ $16 Kg4 58. g3) 57... Kf6 $1 $14 {[%emt 0:02:35]} 58. Kd4 {[%emt 0:00:24]} Bh3 {[%emt 0:00:45]} 59. Rd8 {[%emt 0:02:36]} Bg4 {[%emt 0:00:53]} 60. Bd6 {[%emt 0:01:09]} Bh3 $1 {[%emt 0:01:45]} 61. Be5+ {[%emt 0:00:25]} Ke7 {[%emt 0:00:52]} 62. Rg8 {[%emt 0:00:16]} Kf7 {[%emt 0:00:40]} 63. Rg7+ {[%emt 0:00:12]} Kf8 $1 {[%emt 0:00:07]} 64. Rh7 {[%emt 0:00:24]} Kg8 {[%emt 0:00:13]} 65. Rh8+ {[%emt 0:00:17]} Kf7 {[%emt 0:00:01]} 66. Ra8 {[%emt 0:00:12]} Ke7 {[%emt 0:00:12]} 67. Bf4 {[%emt 0:00:33]} ({White should try} 67. Rb8 $14) 67... Bg4 {[%emt 0:00:56]} (67... Kf6 $1 $11) 68. Ke4 {[%emt 0:32:39]} 1/2-1/2

[Event "85th ARM-ch HL 2025"]
[Site "Yerevan"]
[Date "2025.01.17"]
[Round "4.4"]
[White "Harutyunyan, Tigran K."]
[Black "Petrosyan, Manuel"]
[Result "1/2-1/2"]
[Annotator "TA"]
[ECO "E05"]
[WhiteElo "2513"]
[BlackElo "2590"]
[PlyCount "39"]
[EventDate "2025.01.13"]
[EventType "tourn"]
[EventCountry "ARM"]
[SourceTitle "playchess.com"]
[Source "ChessBase"]
[SourceQuality "1"]
[TimeControl "40/5400+30:1800+30"]

{[%evp 18,39,21,17,15,6,10,-5,18,0,19,7,18,0,0,0,42,0,11,6,3,9,39,32]} 1. Nf3 {[%emt 0:02:17]} Nf6 {[%emt 0:08:05]} 2. g3 {[%emt 0:01:03]} d5 {[%emt 0:01:01]} 3. Bg2 {[%emt 0:00:26]} e6 {[%emt 0:01:00]} 4. O-O {[%emt 0:00:35]} Be7 {[%emt 0:00:38]} 5. d4 {[%emt 0:01:26]} O-O {[%emt 0:01:06]} 6. c4 {[%emt 0:00:59]} dxc4 {[%emt 0:00:37]} 7. Qc2 {[%emt 0:00:42]} a6 {[%emt 0:01:15]} 8. a4 {[%emt 0:00:56]} Bd7 {[%emt 0:00:37]} 9. Qxc4 {[%emt 0:01:00]} Bc6 {[%emt 0:00:15]} 10. Bf4 {[%emt 0:00:58]} Bd6 {[%emt 0:00:35]} 11. Qc1 {[%emt 0:00:31]} Nbd7 {[%emt 0:00:38]} 12. Nc3 {[%emt 0:02:08]} Nd5 {[%emt 0:09:19]} 13. Bg5 {[%emt 0:04:25]} f6 {[%emt 0:02:59]} 14. Bd2 {[%emt 0:01:16]} f5 {[%emt 0:00:15]} 15. Qc2 {[%emt 0:04:45]} Qe8 {[%emt 0:09:44]} 16. Ne1 {[%emt 0:10:37]} Kh8 {[%emt 0:13:53]} 17. Nd3 {[%emt 0:02:42]} Nxc3 {[%emt 0:01:27]} 18. Bxc3 {[%emt 0:01:58]} Bxg2 {[%emt 0:00:10]} 19. Kxg2 {[%emt 0:00:06]} e5 {[%emt 0:00:36]} 20. dxe5 {[%emt 0:03:55]} 1/2-1/2

[Event "85th ARM-ch HL 2025"]
[Site "Yerevan"]
[Date "2025.01.17"]
[Round "4.5"]
[White "Agasarov, Benik"]
[Black "Gharibyan, Mamikon"]
[Result "1-0"]
[Annotator "TA"]
[ECO "C47"]
[WhiteElo "2387"]
[BlackElo "2486"]
[PlyCount "99"]
[EventDate "2025.01.13"]
[EventType "tourn"]
[EventCountry "ARM"]
[SourceTitle "playchess.com"]
[Source "ChessBase"]
[SourceQuality "1"]
[TimeControl "40/5400+30:1800+30"]

{[%evp 17,99,4,8,2,0,0,0,-4,26,23,12,25,41,50,39,42,44,43,46,28,125,120,132,53,75,73,75,83,83,39,35,38,33,0,0,2,26,69,63,44,179,176,208,170,164,168,399,413,400,405,381,391,692,490,474,475,463,487,482,419,511,510,499,449,495,465,525,525,518,481,487,485,489,483,481,476,476,476,476,476,480,484,526,460]} 1. e4 {[%emt 0:00:03]} e5 {[%emt 0:00:24]} 2. Nf3 {[%emt 0:00:06]} Nc6 {[%emt 0:00:04]} 3. Nc3 {[%emt 0:00:05]} Nf6 {[%emt 0:00:25]} 4. d4 {[%emt 0:00:05]} exd4 {[%emt 0:00:17]} 5. Nxd4 {[%emt 0:00:05]} Bb4 {[%emt 0:00:15]} 6. Nxc6 {[%emt 0:00:07]} bxc6 {[%emt 0:00:04]} 7. Bd3 {[%emt 0:00:04]} O-O {[%emt 0:01:38]} 8. O-O {[%emt 0:00:06]} d5 {[%emt 0:00:03]} 9. exd5 {[%emt 0:00:05]} cxd5 {[%emt 0:00:02]} 10. h3 {[%emt 0:00:05] Prevents Bg4} c6 {[%emt 0:01:08]} 11. Qf3 {[%emt 0:00:05]} Bd6 {[%emt 0:04:44]} 12. Re1 {[%emt 0:00:07] The position is equal.} Rb8 {[%emt 0:06:38]} 13. b3 {[%emt 0:00:07]} h6 {[%emt 0:04:25]} 14. Bf4 {[%emt 0:00:48]} Rb4 {[%emt 0:02:10]} 15. Bxd6 {[%emt 0:00:07]} Qxd6 {[%emt 0:00:03]} 16. Qe3 {[%emt 0:00:39]} a5 {[%emt 0:14:31]} 17. Na4 {[%emt 0:13:38]} Be6 {[%emt 0:11:42]} 18. c3 {[%emt 0:03:47]} d4 {[%emt 0:18:04]} (18... Rbb8 $11 {keeps the balance.}) 19. Qd2 $16 {[%emt 0:04:35]} Rbb8 {[%emt 0:03:53]} 20. c4 {[%emt 0:04:45]} (20. cxd4 $16 Kh8 21. Bf1 (21. Qxa5 Qxd4 22. Rad1 Ra8 $16)) 20... Ra8 {[%emt 0:06:25] [#]} 21. c5 $1 {[%emt 0:11:32]} Qc7 {[%emt 0:02:07]} 22. Nb6 {[%emt 0:00:46]} Rad8 {[%emt 0:08:45]} 23. f4 {[%emt 0:04:24][%cal Oa1d1,Bf2f4,Bf4f5][%mdl 32] White is more active.} Nd5 {[%emt 0:04:00]} 24. f5 {[%emt 0:01:38]} Bc8 {[%emt 0:00:34]} 25. Nxd5 {[%emt 0:03:37]} Rxd5 {[%emt 0:00:15]} 26. f6 {[%emt 0:00:45] Threatens to win with fxg7.} Rxc5 {[%emt 0:03:22]} 27. fxg7 {[%emt 0:03:00]} Kxg7 {[%emt 0:01:43]} 28. Qf2 {[%emt 0:01:13] Dancing on a razor blade.} Rd8 {[%emt 0:01:52] A mistake that costs the game.} (28... Rd5 $14) 29. Rf1 $18 {[%emt 0:00:50][%cal Be1f1,Bf1f3,Bf3g3,Bg3g4,Bg4f4][%mdl 1056] White has strong compensation.} Qe7 {[%emt 0:01:22] Against Qf6+} 30. Rae1 $40 {[%emt 0:00:29][%mdl 128] Inhibits Qe3. White attacks with force.} Be6 {[%emt 0:00:11]} 31. h4 {[%emt 0:00:17] Hoping for Qg3+.} Rc3 $2 {[%emt 0:02:57]} (31... Rh5) 32. Qg3+ {[%emt 0:03:17]} Kf8 {[%emt 0:00:18]} 33. Qe5 {[%emt 0:00:07][%csl LRa5,LRe6]} ({Less strong is} 33. Qg6 Rd6 $16 (33... Ke8 $2 34. Rxf7 Bxf7 35. Rxe7+ Kxe7 36. Qxh6 $18)) 33... Kg8 {[%emt 0:00:54] Prevents Qh8+} 34. Rf3 {[%emt 0:05:03] White wants to mate with Rg3+.} Qxh4 {[%emt 0:00:23]} (34... Rxd3 35. Rxd3 Kh7 36. Qe4+ (36. Qxa5 Rd5 $16) (36. Rxd4 Qa7 $18) (36. Rg3 Qf8 $18) 36... Kh8 37. Rxd4 (37. Qxc6 Qxh4 38. Qe4 Qf6 $18) 37... Rc8 38. Qe5+ Kh7) 35. Ref1 {[%emt 0:00:06]} Qg5 {[%emt 0:01:20]} 36. Rg3 {[%emt 0:00:30]} Bg4 {[%emt 0:00:04] [#]} 37. Qe4 {[%emt 0:00:39] Intending Qh7+ and mate.} Kf8 {[%emt 0:01:26]} 38. Rxg4 {[%emt 0:00:28]} Qe3+ {[%emt 0:00:05]} 39. Qxe3 {[%emt 0:00:04] White is clearly winning.} dxe3 {[%emt 0:00:04]} 40. Bc4 {[%emt 0:00:00]} Rd7 {[%emt 0:00:00]} 41. Rgf4 {[%emt 0:02:18]} Ke8 {[%emt 0:01:54]} 42. a4 {[%emt 0:06:19]} Re7 {[%emt 0:01:51]} 43. Re1 {[%emt 0:04:49]} Re5 {[%emt 0:03:50]} 44. Bxf7+ {[%emt 0:00:58]} (44. Rxf7 Rxc4 45. Rf6 Rc2 46. Rxh6 Rc3 $11) 44... Ke7 {[%emt 0:00:29]} 45. Bc4 {[%emt 0:00:38]} h5 {[%emt 0:01:28]} 46. Re2 {[%emt 0:00:40]} Kd6 {[%emt 0:01:00]} 47. Kh2 {[%emt 0:00:25]} Kc5 {[%emt 0:00:06]} 48. Kg3 {[%emt 0:00:22]} Rc1 {[%emt 0:00:18]} 49. Rf6 {[%emt 0:03:45]} Re4 {[%emt 0:06:40]} 50. Rh6 {[%emt 0:07:07] Weighted Error Value: White=0.12 (very precise) /Black=0.35.  Mistake:       	White=1     	Black=4      Inaccurate:     	White=2     	Black=1      OK:         	White=24    	Black=12     Best:        	White=4     	Black=3      Strong:       	White=1     	---} 1-0

[Event "85th ARM-ch HL 2025"]
[Site "Yerevan"]
[Date "2025.01.18"]
[Round "5.1"]
[White "Gharibyan, Mamikon"]
[Black "Davtyan, Artur"]
[Result "0-1"]
[Annotator "TA"]
[ECO "C42"]
[WhiteElo "2486"]
[BlackElo "2458"]
[PlyCount "106"]
[EventDate "2025.01.13"]
[EventType "tourn"]
[EventCountry "ARM"]
[SourceTitle "playchess.com"]
[Source "ChessBase"]
[SourceQuality "1"]
[TimeControl "40/5400+30:1800+30"]

{[%evp 21,106,23,25,19,22,13,12,12,12,7,3,3,16,18,12,15,24,20,25,14,23,0,0,0,0,0,0,0,0,0,-16,-10,-6,-23,-17,-18,-13,-43,-40,-38,-38,-38,-41,-41,-40,-45,-29,-35,-38,-40,-40,-40,-35,-101,-13,-128,-115,-241,-147,-197,-166,-221,-221,-225,-225,-223,-201,-219,-190,-432,-431,-990,-930,-1214,-1219,-1333,-1342,-1136,-1051,-1323,-1300,-1225,-1221,-6552,-5819,-2868,-1997]} 1. e4 {[%emt 0:00:04]} e5 {[%emt 0:06:01]} 2. Nf3 {[%emt 0:00:18]} Nf6 {[%emt 0:00:07]} 3. Nxe5 {[%emt 0:07:49]} d6 {[%emt 0:00:12]} 4. Nf3 {[%emt 0:00:08]} Nxe4 {[%emt 0:00:05]} 5. d4 {[%emt 0:00:06]} d5 {[%emt 0:00:07]} 6. Bd3 {[%emt 0:00:11]} Be7 {[%emt 0:00:07]} 7. O-O {[%emt 0:03:13]} Nc6 {[%emt 0:00:27]} 8. Nbd2 {[%emt 0:03:03]} Nd6 {[%emt 0:00:14]} 9. c3 {[%emt 0:04:01]} Bf5 {[%emt 0:00:25]} 10. Bxf5 {[%emt 0:03:34]} Nxf5 {[%emt 0:02:12]} 11. Re1 {[%emt 0:02:05]} Qd7 {[%emt 0:11:45]} 12. Nf1 {[%emt 0:34:09]} O-O {[%emt 0:01:03]} 13. Qd3 {[%emt 0:03:42]} f6 {[%emt 0:20:11]} 14. Ng3 {[%emt 0:08:01]} Nxg3 {[%emt 0:01:59]} 15. hxg3 {[%emt 0:00:21]} Rfe8 {[%emt 0:07:06]} 16. Bf4 {[%emt 0:03:37]} a6 {[%emt 0:17:06]} 17. g4 {[%emt 0:01:16]} Qxg4 {[%emt 0:04:44]} 18. Bxc7 {[%emt 0:00:16]} Bf8 {[%emt 0:00:03]} 19. Nh2 {[%emt 0:01:33]} Qd7 {[%emt 0:01:34]} 20. Bf4 {[%emt 0:02:10]} Ne7 {[%emt 0:00:27]} 21. Qf3 {[%emt 0:01:06]} Nf5 {[%emt 0:05:09]} 22. Nf1 {[%emt 0:02:13]} g6 {[%emt 0:00:16]} 23. Bh2 {[%emt 0:09:02]} h5 {[%emt 0:02:03]} 24. Ng3 {[%emt 0:04:29]} Nxg3 {[%emt 0:10:08]} 25. Bxg3 {[%emt 0:00:16]} Kg7 {[%emt 0:00:08]} 26. b3 {[%emt 0:01:05]} Rac8 {[%emt 0:03:47]} 27. Rac1 {[%emt 0:01:28]} b5 {[%emt 0:01:18]} 28. Rxe8 {[%emt 0:01:35]} Rxe8 {[%emt 0:00:07]} 29. c4 {[%emt 0:01:46]} dxc4 {[%emt 0:00:01]} 30. bxc4 {[%emt 0:00:07]} Qxd4 {[%emt 0:00:51]} 31. cxb5 {[%emt 0:01:46]} h4 {[%emt 0:05:00]} 32. Bf4 {[%emt 0:01:17]} axb5 {[%emt 0:00:08]} 33. Be3 {[%emt 0:00:34]} Qe5 {[%emt 0:00:05]} 34. Re1 {[%emt 0:00:37]} g5 {[%emt 0:01:31]} 35. Bd2 {[%emt 0:00:11]} Qb8 {[%emt 0:00:01]} 36. Rb1 {[%emt 0:00:22]} Qa8 {[%emt 0:01:03]} 37. Qb3 {[%emt 0:00:57]} (37. Rxb5 $15 Qxf3 (37... Qxa2 $2 38. Bc3 $18) 38. gxf3) 37... Bd6 {[%emt 0:00:43]} (37... Rd8 $17 38. Bb4 Bxb4 39. Qxb4 Qxa2) 38. Rd1 {[%emt 0:00:30]} (38. Qxb5 $11 {keeps the balance.} Qe4 39. Bc3) 38... Qc6 $17 {[%emt 0:00:33]} 39. Rb1 {[%emt 0:01:02]} (39. Bc3 $17) 39... Re5 {[%emt 0:01:13]} 40. Bc3 {[%emt 0:00:30]} (40. Be3 $17) 40... Rc5 {[%emt 0:00:30]} 41. Bb2 {[%emt 0:30:30]} (41. Bd2 {keeps fighting.}) 41... Rc2 $19 {[%emt 0:30:30]} 42. Rd1 {[%emt 0:00:30]} ({Don't go for} 42. Qe6 $2 Bh2+ 43. Kxh2 Qxe6 $19) 42... Bg3 {[%emt 0:00:30]} 43. Bd4 {[%emt 0:00:30]} Bf4 {[%emt 0:00:30]} 44. Qa3 {[%emt 0:00:30]} Qe6 {[%emt 0:00:30]} 45. Qa7+ $2 {[%emt 0:00:30]} (45. Qf3 {was the only chance.}) 45... Kg6 $19 {[%emt 0:00:30]} 46. a4 {[%emt 0:00:30]} (46. Qb6 $142 Qxb6 (46... Qxa2 47. Qxf6+ Kh5 48. Qh8+ Kg4 49. Qe8 $16) 47. Bxb6) 46... Rd2 $19 {[%emt 0:00:30]} 47. Rf1 {[%emt 0:00:30]} h3 {[%emt 0:00:30]} 48. Qb6 {[%emt 0:00:30]} Qxb6 {[%emt 0:00:30]} 49. Bxb6 {[%emt 0:00:30]} bxa4 {[%emt 0:00:30]} 50. Bc5 {[%emt 0:00:30]} Rc2 {[%emt 0:00:30]} 51. Ba3 {[%emt 0:00:30]} g4 {[%emt 0:00:30]} 52. gxh3 {[%emt 0:00:30]} gxh3 {[%emt 0:00:30]} 53. Rd1 {[%emt 0:00:30]} Kf5 {[%emt 0:00:30]} 0-1

[Event "85th ARM-ch HL 2025"]
[Site "Yerevan"]
[Date "2025.01.18"]
[Round "5.2"]
[White "Petrosyan, Manuel"]
[Black "Agasarov, Benik"]
[Result "1-0"]
[Annotator "TA"]
[ECO "C27"]
[WhiteElo "2590"]
[BlackElo "2387"]
[PlyCount "109"]
[EventDate "2025.01.13"]
[EventType "tourn"]
[EventCountry "ARM"]
[SourceTitle "playchess.com"]
[Source "ChessBase"]
[SourceQuality "1"]
[TimeControl "40/5400+30:1800+30"]

{[%evp 9,109,-18,-4,-8,-16,-14,12,0,0,0,32,21,29,28,38,29,26,31,58,62,71,63,68,53,64,44,46,43,45,32,47,0,37,36,45,54,46,44,44,39,39,37,54,54,54,54,54,48,54,62,92,90,99,106,106,104,139,144,138,131,133,142,137,128,133,79,202,233,243,222,210,183,225,247,235,238,302,298,270,211,349,338,308,299,302,307,297,297,322,308,314,308,377,374,387,345,382,379,419,408,388,394]} 1. e4 {[%emt 0:01:35]} e5 {[%emt 0:00:06]} 2. Bc4 {[%emt 0:00:17]} Nf6 {[%emt 0:04:34]} 3. Nc3 {[%emt 0:00:58]} Bc5 {[%emt 0:00:58]} 4. Nge2 {[%emt 0:00:32]} d6 {[%emt 0:06:57]} 5. O-O {[%emt 0:00:39]} O-O {[%emt 0:03:16]} 6. d4 {[%emt 0:02:27]} exd4 {[%emt 0:00:19]} 7. Nxd4 {[%emt 0:00:05]} Bg4 {[%emt 0:08:37]} 8. Be2 {[%emt 0:04:12]} Bxe2 {[%emt 0:05:43]} 9. Ndxe2 {[%emt 0:00:23]} h6 {[%emt 0:01:29]} 10. Ng3 {[%emt 0:04:21]} Nc6 {[%emt 0:00:37]} 11. Na4 {[%emt 0:03:56]} Bb6 {[%emt 0:15:24]} 12. Nxb6 {[%emt 0:06:28]} axb6 {[%emt 0:00:04]} 13. c4 {[%emt 0:01:00]} Qe8 {[%emt 0:01:26][%cal Oe8e5]} 14. Bd2 {[%emt 0:06:59]} Qe6 {[%emt 0:04:38]} (14... Nxe4 $2 15. Re1 $18) 15. b3 {[%emt 0:02:16]} Rfe8 {[%emt 0:05:20]} (15... Nxe4 $2 16. Re1 $18) 16. Re1 {[%emt 0:06:28]} Qe5 {[%emt 0:08:39]} 17. Qf3 {[%emt 0:11:37]} Nd4 {[%emt 0:14:47]} 18. Qd3 {[%emt 0:01:36]} Ne6 {[%emt 0:00:26] Inhibits f4.} 19. Bc3 {[%emt 0:17:39]} Qg5 {[%emt 0:01:49]} 20. Bd2 {[%emt 0:08:09]} Qe5 {[%emt 0:03:46]} 21. f3 {[%emt 0:00:34]} Qd4+ {[%emt 0:00:27]} 22. Qxd4 {[%emt 0:04:30]} Nxd4 {[%emt 0:00:04]} 23. Rec1 {[%emt 0:00:20] Inhibits Nc2.} Nd7 {[%emt 0:01:20]} 24. Bc3 {[%emt 0:00:15]} Ne6 {[%emt 0:00:17]} 25. Rc2 {[%emt 0:00:17]} g6 {[%emt 0:02:33]} 26. Rd1 {[%emt 0:01:34]} Ng7 {[%emt 0:02:22]} 27. Kf2 {[%emt 0:02:02]} f6 {[%emt 0:00:38]} 28. h4 {[%emt 0:06:25]} h5 {[%emt 0:00:16]} 29. Nf1 {[%emt 0:00:37][%cal Bg3f1,Bf1e3,Be3d5][%mdl 32]} f5 {[%emt 0:03:45]} 30. Bxg7 {[%emt 0:00:49]} Kxg7 {[%emt 0:00:04][%cal Bg8g7,Bg7g6,Bg6f7][%mdl 32]} 31. exf5 {[%emt 0:00:06]} gxf5 {[%emt 0:00:02]} 32. Ne3 {[%emt 0:00:09]} Kg6 {[%emt 0:00:45]} 33. Nd5 {[%emt 0:01:06]} Rac8 {[%emt 0:00:03]} 34. Re1 {[%emt 0:04:35] White is more active.} Rxe1 {[%emt 0:03:45]} 35. Kxe1 $16 {[%emt 0:00:01][%mdl 4096] Endgame KRN-KRN} Kf7 {[%emt 0:02:06] Prevents Ne7.} 36. Re2 {[%emt 0:00:05]} Ne5 {[%emt 0:00:35]} 37. Kf2 {[%emt 0:00:59]} ({White should play} 37. f4 Ng6 38. g3) 37... b5 {[%emt 0:00:31]} 38. cxb5 $18 {[%emt 0:00:34]} c6 {[%emt 0:00:02]} 39. bxc6 {[%emt 0:00:45]} bxc6 {[%emt 0:00:01]} 40. Nf4 {[%emt 0:00:00]} Re8 {[%emt 0:00:00]} 41. Rd2 {[%emt 0:08:16]} d5 {[%emt 0:03:57]} 42. g3 {[%emt 0:13:01]} Rh8 {[%emt 0:07:42]} 43. Re2 {[%emt 0:00:42]} Nd7 {[%emt 0:00:16]} 44. Rc2 {[%emt 0:00:45]} Rh6 {[%emt 0:00:24]} (44... Ne5 {keeps fighting.} 45. Re2 Nd7) 45. b4 {[%emt 0:03:45]} Ke7 {[%emt 0:01:15] [#]} 46. b5 $1 {[%emt 0:00:18][%mdl 512]} cxb5 {[%emt 0:00:08]} 47. Nxd5+ {[%emt 0:00:07]} Kd6 {[%emt 0:00:05]} 48. Rd2 {[%emt 0:00:35]} Ne5 {[%emt 0:01:15]} 49. Nc3+ {[%emt 0:01:43]} Kc6 {[%emt 0:01:02] [#]} 50. Nxb5 $1 {[%emt 0:00:46]} Nc4 {[%emt 0:02:10]} (50... Rf6 51. Nd4+) 51. Nd4+ {[%emt 0:00:07]} Kc5 {[%emt 0:00:04]} 52. Nb3+ {[%emt 0:00:34]} (52. Nxf5 Rf6 53. Rd8 Rxf5 $17) 52... Kb4 {[%emt 0:00:04]} 53. Rd5 {[%emt 0:02:07]} Ra6 {[%emt 0:00:16]} 54. Nc1 {[%emt 0:00:07]} (54. Rxf5 Rxa2+ 55. Kg1 Kxb3 $14) 54... Nd6 {[%emt 0:00:58]} 55. Ke3 {[%emt 0:00:30]} 1-0